[Event "Early-Titled-Tuesday-Blitz-May-28-2024"]
[Site "Chess.com"]
[Date "2024.05.28"]
[Round "7"]
[White "Al_Shima"]
[Black "DrCeltic"]
[Result "0-1"]
[WhiteElo "2482"]
[BlackElo "2589"]
[TimeControl "180+1"]
[EndTime "9:18:33 PDT"]
[Termination "DrCeltic won by resignation"]

1. b3 {[%clk 0:03:00.6]} 1... e6 {[%clk 0:02:58]} 2. Bb2 {[%clk 0:03:01.5]} 2...
Nf6 {[%clk 0:02:58.4]} 3. e3 {[%clk 0:03:01.5]} 3... b6 {[%clk 0:02:57.8]} 4. f4
{[%clk 0:03:01.7]} 4... Bb7 {[%clk 0:02:58]} 5. Nf3 {[%clk 0:03:01]} 5... c5
{[%clk 0:02:58.3]} 6. Bd3 {[%clk 0:02:57.6]} 6... Nc6 {[%clk 0:02:58.7]} 7. O-O
{[%clk 0:02:57]} 7... Be7 {[%clk 0:02:58.4]} 8. a4 {[%clk 0:02:57.2]} 8... Nb4
{[%clk 0:02:57.6]} 9. Be2 {[%clk 0:02:57.4]} 9... O-O {[%clk 0:02:57]} 10. Ne5
{[%clk 0:02:57.8]} 10... d6 {[%clk 0:02:56.2]} 11. Ng4 {[%clk 0:02:57.2]} 11...
Nxg4 {[%clk 0:02:55.2]} 12. Bxg4 {[%clk 0:02:58.1]} 12... Bf6 {[%clk 0:02:55.7]}
13. Bxf6 {[%clk 0:02:58.7]} 13... Qxf6 {[%clk 0:02:56.6]} 14. Nc3 {[%clk
0:02:59.6]} 14... Qg6 {[%clk 0:02:42.8]} 15. d3 {[%clk 0:02:53]} 15... Nxc2
{[%clk 0:02:34.3]} 16. Qxc2 {[%clk 0:02:50.8]} 16... Qxg4 {[%clk 0:02:33.8]} 17.
e4 {[%clk 0:02:51.2]} 17... f5 {[%clk 0:02:29.4]} 18. g3 {[%clk 0:02:42.1]}
18... fxe4 {[%clk 0:02:27.6]} 19. dxe4 {[%clk 0:02:43]} 19... Qg6 {[%clk
0:02:11.1]} 20. Rae1 {[%clk 0:02:38.3]} 20... d5 {[%clk 0:02:10.3]} 21. Qe2
{[%clk 0:02:28.9]} 21... d4 {[%clk 0:02:09.3]} 22. Nb5 {[%clk 0:02:28.7]} 22...
Ba6 {[%clk 0:02:01.9]} 23. Qc4 {[%clk 0:02:22.4]} 23... h5 {[%clk 0:01:51.9]}
24. f5 {[%clk 0:02:12.6]} 24... Bxb5 {[%clk 0:01:11.8]} 25. axb5 {[%clk
0:02:10.5]} 25... Qf6 {[%clk 0:01:09.6]} 26. e5 {[%clk 0:02:09.7]} 26... Qf7
{[%clk 0:01:04.4]} 27. Rf4 {[%clk 0:01:53]} 27... Rae8 {[%clk 0:00:57.5]} 28. f6
{[%clk 0:01:50.1]} 28... Qg6 {[%clk 0:00:50]} 29. Ref1 {[%clk 0:01:47.9]} 29...
Rf7 {[%clk 0:00:42.4]} 30. fxg7 {[%clk 0:01:34.5]} 30... Rxf4 {[%clk 0:00:36.2]}
31. Rxf4 {[%clk 0:01:35.4]} 31... Kxg7 {[%clk 0:00:36]} 32. Rf6 {[%clk
0:01:21.9]} 32... Qg4 {[%clk 0:00:32.4]} 33. Qf1 {[%clk 0:01:18.2]} 33... Re7
{[%clk 0:00:23.6]} 34. Qd3 {[%clk 0:00:41.3]} 34... Qg5 {[%clk 0:00:20.5]} 35.
Qe4 {[%clk 0:00:40.4]} 35... Rf7 {[%clk 0:00:18.5]} 36. Rxf7+ {[%clk 0:00:31.1]}
36... Kxf7 {[%clk 0:00:19.4]} 37. Qb7+ {[%clk 0:00:28.3]} 37... Kg6 {[%clk
0:00:19.7]} 38. Qc8 {[%clk 0:00:21.2]} 38... Qxe5 {[%clk 0:00:14.7]} 39. Qg8+
{[%clk 0:00:20.1]} 39... Kf5 {[%clk 0:00:15.2]} 40. Qh7+ {[%clk 0:00:19.9]}
40... Kg4 {[%clk 0:00:13.7]} 41. Qg6+ {[%clk 0:00:15.8]} 41... Kf3 {[%clk
0:00:13.2]} 42. Qf7+ {[%clk 0:00:12.9]} 42... Ke2 {[%clk 0:00:12.7]} 43. Qf1+
{[%clk 0:00:12.7]} 43... Kd2 {[%clk 0:00:12.1]} 44. Qc4 {[%clk 0:00:12.7]} 44...
Qe3+ {[%clk 0:00:11.5]} 45. Kf1 {[%clk 0:00:11.3]} 45... Qe1+ {[%clk 0:00:11.5]}
46. Kg2 {[%clk 0:00:11.5]} 46... Qe2+ {[%clk 0:00:12.1]} 0-1

[Event "Early-Titled-Tuesday-Blitz-May-28-2024"]
[Site "Chess.com"]
[Date "2024.05.28"]
[Round "7"]
[White "ozates"]
[Black "Daaksboy"]
[Result "0-1"]
[WhiteElo "2626"]
[BlackElo "2489"]
[TimeControl "180+1"]
[EndTime "9:18:34 PDT"]
[Termination "Daaksboy won by resignation"]

1. e4 {[%clk 0:03:00.9]} 1... c5 {[%clk 0:02:59.5]} 2. Nf3 {[%clk 0:03:00.8]}
2... d6 {[%clk 0:02:59.8]} 3. Bb5+ {[%clk 0:02:56.8]} 3... Bd7 {[%clk
0:02:59.4]} 4. Bxd7+ {[%clk 0:02:56.2]} 4... Nxd7 {[%clk 0:02:59.5]} 5. O-O
{[%clk 0:02:56.7]} 5... Ngf6 {[%clk 0:02:59.6]} 6. Qe2 {[%clk 0:02:56.1]} 6...
e6 {[%clk 0:02:59.6]} 7. Rd1 {[%clk 0:02:55.4]} 7... Be7 {[%clk 0:02:58.5]} 8.
d4 {[%clk 0:02:53.9]} 8... cxd4 {[%clk 0:02:58]} 9. Nxd4 {[%clk 0:02:53.1]} 9...
a6 {[%clk 0:02:43.8]} 10. c4 {[%clk 0:02:45]} 10... Rc8 {[%clk 0:02:36.8]} 11.
Nc3 {[%clk 0:02:41.9]} 11... Qa5 {[%clk 0:02:34.8]} 12. Be3 {[%clk 0:02:26.3]}
12... O-O {[%clk 0:02:31.5]} 13. Rac1 {[%clk 0:02:21.7]} 13... Rfe8 {[%clk
0:02:26.5]} 14. f3 {[%clk 0:02:08.5]} 14... Qh5 {[%clk 0:02:02.2]} 15. Nb3
{[%clk 0:01:59.3]} 15... Ne5 {[%clk 0:01:40.6]} 16. Nd2 {[%clk 0:01:58.8]} 16...
Bf8 {[%clk 0:01:30.8]} 17. b3 {[%clk 0:01:43.7]} 17... Be7 {[%clk 0:01:16.2]}
18. Nf1 {[%clk 0:01:35.4]} 18... Rc6 {[%clk 0:01:06]} 19. Ng3 {[%clk 0:01:25.9]}
19... Qh4 {[%clk 0:00:51.2]} 20. Bd4 {[%clk 0:01:13.4]} 20... Bd8 {[%clk
0:00:47.5]} 21. Rd2 {[%clk 0:01:09.8]} 21... Ng6 {[%clk 0:00:39.2]} 22. Be3
{[%clk 0:01:02.3]} 22... Ba5 {[%clk 0:00:28.3]} 23. a3 {[%clk 0:00:57.4]} 23...
d5 {[%clk 0:00:28.1]} 24. b4 {[%clk 0:00:55.9]} 24... Bc7 {[%clk 0:00:24.8]} 25.
cxd5 {[%clk 0:00:55.8]} 25... exd5 {[%clk 0:00:24.6]} 26. exd5 {[%clk
0:00:54.3]} 26... Rxe3 {[%clk 0:00:23]} 27. dxc6 {[%clk 0:00:49]} 27... Rxe2
{[%clk 0:00:21.3]} 28. Ncxe2 {[%clk 0:00:48]} 28... bxc6 {[%clk 0:00:18.3]} 29.
Rxc6 {[%clk 0:00:48.9]} 29... Ne8 {[%clk 0:00:17.6]} 30. Rd7 {[%clk 0:00:45.4]}
30... h6 {[%clk 0:00:14.1]} 31. Rcxc7 {[%clk 0:00:39]} 31... Nxc7 {[%clk
0:00:13.6]} 32. Rxc7 {[%clk 0:00:39.9]} 32... Qd8 {[%clk 0:00:13.7]} 33. Rc3
{[%clk 0:00:32.5]} 33... Ne5 {[%clk 0:00:14]} 34. h3 {[%clk 0:00:30.8]} 34...
Nd3 {[%clk 0:00:14]} 35. Ne4 {[%clk 0:00:26.2]} 35... Qb6+ {[%clk 0:00:14.2]}
36. Nc5 {[%clk 0:00:26.4]} 36... Ne5 {[%clk 0:00:12.5]} 37. Nd4 {[%clk
0:00:19.7]} 37... a5 {[%clk 0:00:12.5]} 38. b5 {[%clk 0:00:15]} 38... Nd7 {[%clk
0:00:10.7]} 39. Ncb3 {[%clk 0:00:07.4]} 39... a4 {[%clk 0:00:09.6]} 40. Rc6
{[%clk 0:00:08.1]} 40... axb3 {[%clk 0:00:07.6]} 41. Rxb6 {[%clk 0:00:07.8]}
41... b2 {[%clk 0:00:07.8]} 0-1

[Event "Early-Titled-Tuesday-Blitz-May-28-2024"]
[Site "Chess.com"]
[Date "2024.05.28"]
[Round "7"]
[White "simaopdias"]
[Black "David_George21"]
[Result "0-1"]
[WhiteElo "2242"]
[BlackElo "2405"]
[TimeControl "180+1"]
[EndTime "9:18:34 PDT"]
[Termination "David_George21 won by resignation"]

1. e4 {[%clk 0:03:00.4]} 1... c5 {[%clk 0:02:59.6]} 2. Nf3 {[%clk 0:03:00.9]}
2... d6 {[%clk 0:02:59.6]} 3. d4 {[%clk 0:03:01.8]} 3... cxd4 {[%clk 0:03:00.3]}
4. Nxd4 {[%clk 0:03:02.7]} 4... Nf6 {[%clk 0:03:00.1]} 5. Nc3 {[%clk 0:03:03.4]}
5... Nc6 {[%clk 0:02:57.8]} 6. Be2 {[%clk 0:03:02.2]} 6... e5 {[%clk 0:02:57.2]}
7. Nf5 {[%clk 0:03:00.6]} 7... d5 {[%clk 0:02:48.8]} 8. Bg5 {[%clk 0:02:58.8]}
8... Bxf5 {[%clk 0:02:40.1]} 9. exf5 {[%clk 0:02:58.4]} 9... d4 {[%clk
0:02:39.9]} 10. Ne4 {[%clk 0:02:55.4]} 10... Bb4+ {[%clk 0:02:39.1]} 11. Kf1
{[%clk 0:02:52.3]} 11... h6 {[%clk 0:02:35.9]} 12. Nxf6+ {[%clk 0:02:48.3]}
12... gxf6 {[%clk 0:02:36.8]} 13. Bh4 {[%clk 0:02:47.8]} 13... Rg8 {[%clk
0:02:30.1]} 14. Bf3 {[%clk 0:02:46]} 14... Qe7 {[%clk 0:02:27.3]} 15. c3 {[%clk
0:02:41.6]} 15... dxc3 {[%clk 0:02:19.7]} 16. bxc3 {[%clk 0:02:41.5]} 16... Bxc3
{[%clk 0:02:20.6]} 17. Rc1 {[%clk 0:02:40.9]} 17... Bd4 {[%clk 0:02:16]} 18. Qa4
{[%clk 0:02:36.1]} 18... Rc8 {[%clk 0:01:57.3]} 19. g3 {[%clk 0:02:21.1]} 19...
Kf8 {[%clk 0:01:55.1]} 20. Kg2 {[%clk 0:02:20.3]} 20... Kg7 {[%clk 0:01:54.5]}
21. Rhe1 {[%clk 0:02:17.4]} 21... Rgd8 {[%clk 0:01:48.8]} 22. Be4 {[%clk
0:01:59]} 22... a6 {[%clk 0:01:26.4]} 23. Qd1 {[%clk 0:01:56.5]} 23... Rd6
{[%clk 0:01:13.8]} 24. Qh5 {[%clk 0:01:55.1]} 24... Kh7 {[%clk 0:01:10.3]} 25.
Bc2 {[%clk 0:01:43.7]} 25... Bc3 {[%clk 0:00:48.3]} 26. Re4 {[%clk 0:01:39.4]}
26... Nd4 {[%clk 0:00:44.2]} 27. Rg4 {[%clk 0:01:12.7]} 27... Bd2 {[%clk
0:00:42]} 28. Bb3 {[%clk 0:00:45.6]} 28... Bxc1 {[%clk 0:00:08.9]} 29. Bxf7
{[%clk 0:00:44.8]} 29... Bg5 {[%clk 0:00:06.3]} 30. Qg6+ {[%clk 0:00:37.4]}
30... Kh8 {[%clk 0:00:06.3]} 31. Bxg5 {[%clk 0:00:30.9]} 31... fxg5 {[%clk
0:00:07.2]} 32. Be6 {[%clk 0:00:14.1]} 32... Rxe6 {[%clk 0:00:04.1]} 33. fxe6
{[%clk 0:00:13.5]} 33... Qxe6 {[%clk 0:00:04.6]} 34. Qe4 {[%clk 0:00:12.4]}
34... Rd8 {[%clk 0:00:03.9]} 35. h4 {[%clk 0:00:12]} 35... Qd5 {[%clk
0:00:04.2]} 36. hxg5 {[%clk 0:00:11.5]} 36... hxg5 {[%clk 0:00:04.1]} 37. f3
{[%clk 0:00:10.2]} 37... Qxe4 {[%clk 0:00:04.3]} 38. fxe4 {[%clk 0:00:10]} 38...
Ne6 {[%clk 0:00:04.3]} 0-1

[Event "Early-Titled-Tuesday-Blitz-May-28-2024"]
[Site "Chess.com"]
[Date "2024.05.28"]
[Round "7"]
[White "djokovic74"]
[Black "MVM2008"]
[Result "0-1"]
[WhiteElo "2743"]
[BlackElo "2527"]
[TimeControl "180+1"]
[EndTime "9:18:35 PDT"]
[Termination "MVM2008 won by resignation"]

1. c4 {[%clk 0:03:00.9]} 1... c6 {[%clk 0:02:59.2]} 2. Nf3 {[%clk 0:03:00.5]}
2... d5 {[%clk 0:02:59.7]} 3. g3 {[%clk 0:03:00.8]} 3... dxc4 {[%clk 0:02:57]}
4. Bg2 {[%clk 0:03:01.4]} 4... g6 {[%clk 0:02:56.2]} 5. O-O {[%clk 0:02:29.7]}
5... Bg7 {[%clk 0:02:54.2]} 6. Na3 {[%clk 0:02:30.1]} 6... b5 {[%clk 0:02:44.2]}
7. Nxb5 {[%clk 0:02:18.5]} 7... cxb5 {[%clk 0:02:42.9]} 8. Ne1 {[%clk
0:02:18.9]} 8... Bd7 {[%clk 0:02:28]} 9. Bxa8 {[%clk 0:02:16.1]} 9... Nc6 {[%clk
0:02:28]} 10. Bxc6 {[%clk 0:02:05.8]} 10... Bxc6 {[%clk 0:02:28.9]} 11. d3
{[%clk 0:01:53.5]} 11... h5 {[%clk 0:02:15.4]} 12. Qc2 {[%clk 0:01:36.7]} 12...
h4 {[%clk 0:01:08]} 13. dxc4 {[%clk 0:01:35.4]} 13... Qd4 {[%clk 0:00:41.9]} 14.
cxb5 {[%clk 0:01:06.6]} 14... Bb7 {[%clk 0:00:38.5]} 15. Be3 {[%clk 0:00:56.3]}
15... hxg3 {[%clk 0:00:35.3]} 16. Nf3 {[%clk 0:00:18.2]} 16... gxh2+ {[%clk
0:00:11.8]} 17. Kh1 {[%clk 0:00:18.7]} 17... Qg4 {[%clk 0:00:08.8]} 18. Qd1
{[%clk 0:00:17.8]} 18... Nf6 {[%clk 0:00:07.1]} 19. Rc1 {[%clk 0:00:11]} 19...
O-O {[%clk 0:00:02]} 20. b3 {[%clk 0:00:11.3]} 20... Ne4 {[%clk 0:00:01.6]} 21.
Rc4 {[%clk 0:00:10.9]} 21... f5 {[%clk 0:00:01.7]} 22. Rc7 {[%clk 0:00:04.3]}
22... Qh3 {[%clk 0:00:02.1]} 23. Rxb7 {[%clk 0:00:02.7]} 23... g5 {[%clk
0:00:02.4]} 24. Qd5+ {[%clk 0:00:02.6]} 24... Kh8 {[%clk 0:00:02.4]} 25. Rd1
{[%clk 0:00:02.9]} 25... g4 {[%clk 0:00:02.8]} 26. Rxe7 {[%clk 0:00:01.2]} 26...
g3 {[%clk 0:00:03.3]} 27. Ng5 {[%clk 0:00:00.7]} 27... Nxg5 {[%clk 0:00:02.6]}
28. Bxg5 {[%clk 0:00:00.9]} 28... gxf2 {[%clk 0:00:02.1]} 29. Qg2 {[%clk
0:00:01.8]} 29... Qg4 {[%clk 0:00:01.9]} 30. Qxg4 {[%clk 0:00:01.8]} 30... fxg4
{[%clk 0:00:02.8]} 31. Kg2 {[%clk 0:00:02.5]} 31... g3 {[%clk 0:00:03.7]} 32.
Rh1 {[%clk 0:00:02.3]} 32... f1=Q+ {[%clk 0:00:04.6]} 33. Rxf1 {[%clk
0:00:02.6]} 33... Rxf1 {[%clk 0:00:05.5]} 34. Re8+ {[%clk 0:00:02.7]} 34... Bf8
{[%clk 0:00:05.5]} 35. Bf6+ {[%clk 0:00:01.9]} 35... Rxf6 {[%clk 0:00:05.1]} 36.
Re4 {[%clk 0:00:01.3]} 36... Rh6 {[%clk 0:00:05]} 37. Rh4 {[%clk 0:00:01.4]}
37... Rxh4 {[%clk 0:00:05.1]} 0-1

[Event "Early-Titled-Tuesday-Blitz-May-28-2024"]
[Site "Chess.com"]
[Date "2024.05.28"]
[Round "7"]
[White "KorolDimitriy75"]
[Black "tactic"]
[Result "1-0"]
[WhiteElo "2378"]
[BlackElo "2593"]
[TimeControl "180+1"]
[EndTime "9:18:36 PDT"]
[Termination "KorolDimitriy75 won by checkmate"]

1. d4 {[%clk 0:03:00.9]} 1... g6 {[%clk 0:02:58.9]} 2. c4 {[%clk 0:03:01.1]}
2... Bg7 {[%clk 0:02:59.3]} 3. Nf3 {[%clk 0:03:02]} 3... Nf6 {[%clk 0:02:59.9]}
4. Nc3 {[%clk 0:03:02.1]} 4... d5 {[%clk 0:03:00.2]} 5. cxd5 {[%clk 0:03:02.2]}
5... Nxd5 {[%clk 0:03:01.1]} 6. e4 {[%clk 0:03:02.5]} 6... Nxc3 {[%clk
0:03:01.8]} 7. bxc3 {[%clk 0:03:03.3]} 7... c5 {[%clk 0:03:02.5]} 8. Rb1 {[%clk
0:03:03.4]} 8... O-O {[%clk 0:03:02.7]} 9. Be2 {[%clk 0:03:03.8]} 9... Nc6
{[%clk 0:03:02.3]} 10. d5 {[%clk 0:03:04]} 10... Bxc3+ {[%clk 0:03:01.5]} 11.
Bd2 {[%clk 0:03:04.1]} 11... Bxd2+ {[%clk 0:02:54.9]} 12. Qxd2 {[%clk 0:03:05]}
12... Nd4 {[%clk 0:02:25]} 13. Nxd4 {[%clk 0:03:04.4]} 13... cxd4 {[%clk
0:02:25.9]} 14. Qxd4 {[%clk 0:03:04.9]} 14... e6 {[%clk 0:02:15.6]} 15. Bc4
{[%clk 0:02:18.2]} 15... exd5 {[%clk 0:02:06.2]} 16. Bxd5 {[%clk 0:02:17.3]}
16... Be6 {[%clk 0:01:56.1]} 17. Rxb7 {[%clk 0:00:47.4]} 17... Qa5+ {[%clk
0:01:42.7]} 18. Qd2 {[%clk 0:00:47.1]} 18... Qa6 {[%clk 0:01:42.6]} 19. Qe2
{[%clk 0:00:27.5]} 19... Qa5+ {[%clk 0:01:23.1]} 20. Qd2 {[%clk 0:00:27.6]}
20... Qa6 {[%clk 0:01:06.9]} 21. Qe2 {[%clk 0:00:27.3]} 21... Qxe2+ {[%clk
0:00:44]} 22. Kxe2 {[%clk 0:00:28.2]} 22... Bxd5 {[%clk 0:00:40.9]} 23. exd5
{[%clk 0:00:29.1]} 23... Rfe8+ {[%clk 0:00:35.9]} 24. Kd3 {[%clk 0:00:29]} 24...
Re5 {[%clk 0:00:36.1]} 25. Rd7 {[%clk 0:00:19]} 25... Rb8 {[%clk 0:00:34.6]} 26.
Rd1 {[%clk 0:00:15]} 26... Rb2 {[%clk 0:00:31.5]} 27. Rd2 {[%clk 0:00:15.2]}
27... Rb4 {[%clk 0:00:27.9]} 28. Kc3 {[%clk 0:00:13]} 28... Ra4 {[%clk 0:00:28]}
29. d6 {[%clk 0:00:11.5]} 29... Rc5+ {[%clk 0:00:26.1]} 30. Kb3 {[%clk
0:00:11.3]} 30... Ra6 {[%clk 0:00:26.4]} 31. Rd8+ {[%clk 0:00:10.4]} 31... Kg7
{[%clk 0:00:27.1]} 32. d7 {[%clk 0:00:10.4]} 32... Rb6+ {[%clk 0:00:27.8]} 33.
Ka4 {[%clk 0:00:10.5]} 33... Rc4+ {[%clk 0:00:28.5]} 34. Ka5 {[%clk 0:00:10.1]}
34... Rc5+ {[%clk 0:00:28.6]} 35. Ka4 {[%clk 0:00:10.5]} 35... Rc4+ {[%clk
0:00:25.7]} 36. Ka5 {[%clk 0:00:10.6]} 36... Kh6 {[%clk 0:00:24.5]} 37. Rc8
{[%clk 0:00:08.8]} 37... Rf4 {[%clk 0:00:21.3]} 38. d8=Q {[%clk 0:00:07.8]}
38... Rf5+ {[%clk 0:00:22.2]} 39. Rd5 {[%clk 0:00:07.7]} 39... Rxf2 {[%clk
0:00:23]} 40. Qh4+ {[%clk 0:00:06.8]} 40... Kg7 {[%clk 0:00:22.6]} 41. Qxf2
{[%clk 0:00:07.5]} 41... Rf6 {[%clk 0:00:22.4]} 42. Qxf6+ {[%clk 0:00:07.5]}
42... Kxf6 {[%clk 0:00:23]} 43. Rd7 {[%clk 0:00:08.3]} 43... Ke6 {[%clk
0:00:23.9]} 44. Rcc7 {[%clk 0:00:09]} 44... f5 {[%clk 0:00:24.5]} 45. Rxh7
{[%clk 0:00:09.2]} 45... g5 {[%clk 0:00:25.3]} 46. Rhe7+ {[%clk 0:00:09.8]}
46... Kf6 {[%clk 0:00:25.8]} 47. Rxa7 {[%clk 0:00:10]} 47... f4 {[%clk
0:00:25.9]} 48. Rf7+ {[%clk 0:00:10.9]} 48... Kg6 {[%clk 0:00:26.6]} 49. Rae7
{[%clk 0:00:11.1]} 49... Kh5 {[%clk 0:00:26.5]} 50. h3 {[%clk 0:00:10.9]} 50...
Kh4 {[%clk 0:00:27]} 51. Rf5 {[%clk 0:00:10]} 51... Kh5 {[%clk 0:00:27.6]} 52.
Re6 {[%clk 0:00:09.2]} 52... f3 {[%clk 0:00:28.4]} 53. Rxf3 {[%clk 0:00:07.5]}
53... Kh4 {[%clk 0:00:28.6]} 54. Re4+ {[%clk 0:00:07]} 54... Kh5 {[%clk
0:00:29.1]} 55. Rf5 {[%clk 0:00:07.2]} 55... Kg6 {[%clk 0:00:29.2]} 56. Ree5
{[%clk 0:00:07.1]} 56... Kh5 {[%clk 0:00:28.7]} 57. Rxg5+ {[%clk 0:00:07.3]}
57... Kh4 {[%clk 0:00:29.6]} 58. Rg4# {[%clk 0:00:07.3]} 1-0

[Event "Early-Titled-Tuesday-Blitz-May-28-2024"]
[Site "Chess.com"]
[Date "2024.05.28"]
[Round "7"]
[White "FMStan15"]
[Black "carloseduar100"]
[Result "0-1"]
[WhiteElo "2135"]
[BlackElo "2304"]
[TimeControl "180+1"]
[EndTime "9:18:36 PDT"]
[Termination "carloseduar100 won on time"]

1. e4 {[%clk 0:02:50.6]} 1... e6 {[%clk 0:02:57.6]} 2. d4 {[%clk 0:02:48.8]}
2... d5 {[%clk 0:02:58]} 3. e5 {[%clk 0:02:49.2]} 3... c5 {[%clk 0:02:58.1]} 4.
c3 {[%clk 0:02:50.1]} 4... Nc6 {[%clk 0:02:58.6]} 5. Nf3 {[%clk 0:02:50.4]} 5...
Qb6 {[%clk 0:02:58.6]} 6. Be2 {[%clk 0:02:50.6]} 6... Bd7 {[%clk 0:02:57.6]} 7.
dxc5 {[%clk 0:02:50.5]} 7... Bxc5 {[%clk 0:02:57.1]} 8. O-O {[%clk 0:02:50.8]}
8... a5 {[%clk 0:02:54.9]} 9. Nbd2 {[%clk 0:02:45.9]} 9... Nge7 {[%clk
0:02:54.9]} 10. Nb3 {[%clk 0:02:44.3]} 10... Ng6 {[%clk 0:02:55.4]} 11. Nxc5
{[%clk 0:02:44.4]} 11... Qxc5 {[%clk 0:02:55.9]} 12. Nd4 {[%clk 0:02:28]} 12...
Ngxe5 {[%clk 0:02:43.9]} 13. Nb5 {[%clk 0:02:27.7]} 13... O-O {[%clk 0:02:43.1]}
14. Be3 {[%clk 0:02:23.2]} 14... Qe7 {[%clk 0:02:42.8]} 15. f4 {[%clk 0:02:14]}
15... Ng6 {[%clk 0:02:31.4]} 16. Bd3 {[%clk 0:02:04.4]} 16... Rfd8 {[%clk
0:02:29.7]} 17. Re1 {[%clk 0:02:02]} 17... Qh4 {[%clk 0:02:18]} 18. g3 {[%clk
0:02:01.4]} 18... Qf6 {[%clk 0:02:12.7]} 19. Bb6 {[%clk 0:01:59.8]} 19... Rf8
{[%clk 0:02:03.6]} 20. Bc5 {[%clk 0:01:58.7]} 20... Rfc8 {[%clk 0:02:02.1]} 21.
Nd6 {[%clk 0:01:57.1]} 21... Rcb8 {[%clk 0:01:50]} 22. Bb6 {[%clk 0:01:53.3]}
22... Nce7 {[%clk 0:01:43.6]} 23. Bc7 {[%clk 0:01:46.2]} 23... e5 {[%clk
0:01:33]} 24. Bxb8 {[%clk 0:01:39.6]} 24... Rxb8 {[%clk 0:01:33.9]} 25. fxe5
{[%clk 0:01:37.3]} 25... Nxe5 {[%clk 0:01:33.9]} 26. Bxh7+ {[%clk 0:01:22.5]}
26... Kf8 {[%clk 0:01:22.5]} 27. Qh5 {[%clk 0:01:02.5]} 27... Nf3+ {[%clk
0:01:17.4]} 28. Kg2 {[%clk 0:01:02.1]} 28... Nxe1+ {[%clk 0:01:18.3]} 29. Rxe1
{[%clk 0:01:01.2]} 29... Qxd6 {[%clk 0:01:18.7]} 30. Bd3 {[%clk 0:00:52.2]}
30... Qh6 {[%clk 0:01:12.2]} 31. Qe5 {[%clk 0:00:46.9]} 31... Qd2+ {[%clk
0:01:00.5]} 32. Re2 {[%clk 0:00:44.6]} 32... Qxd3 {[%clk 0:00:59.6]} 33. Qxe7+
{[%clk 0:00:43.5]} 33... Kg8 {[%clk 0:00:59.6]} 34. Rf2 {[%clk 0:00:42.1]} 34...
Qe4+ {[%clk 0:00:56.7]} 35. Qxe4 {[%clk 0:00:40.9]} 35... dxe4 {[%clk
0:00:57.3]} 36. Re2 {[%clk 0:00:41.1]} 36... a4 {[%clk 0:00:56]} 37. Kf2 {[%clk
0:00:39.9]} 37... Re8 {[%clk 0:00:55.7]} 38. Ke3 {[%clk 0:00:37.9]} 38... Bc6
{[%clk 0:00:52.6]} 39. Rd2 {[%clk 0:00:37.9]} 39... g6 {[%clk 0:00:52.1]} 40. h4
{[%clk 0:00:37.1]} 40... Kg7 {[%clk 0:00:52.3]} 41. Rd4 {[%clk 0:00:35.2]} 41...
a3 {[%clk 0:00:52.1]} 42. bxa3 {[%clk 0:00:34.7]} 42... Ra8 {[%clk 0:00:51.7]}
43. Rd2 {[%clk 0:00:19]} 43... Rxa3 {[%clk 0:00:51.7]} 44. Rc2 {[%clk
0:00:19.4]} 44... Kf6 {[%clk 0:00:50.2]} 45. Kf4 {[%clk 0:00:18.8]} 45... Ke6
{[%clk 0:00:50]} 46. g4 {[%clk 0:00:18.4]} 46... Bd5 {[%clk 0:00:49.2]} 47. h5
{[%clk 0:00:17.3]} 47... gxh5 {[%clk 0:00:48.4]} 48. c4 {[%clk 0:00:15.5]} 48...
Rf3+ {[%clk 0:00:46.8]} 49. Kg5 {[%clk 0:00:14.7]} 49... f6+ {[%clk 0:00:40.8]}
50. Kxh5 {[%clk 0:00:13.6]} 50... Bc6 {[%clk 0:00:41.4]} 0-1